bitfinex/quotes_ETHUSD_20251006
["timestamp","ask_amount","ask_price","bid_price","bid_amount"]
[1759708801616,0.002,4514.0,4513.9,14.66173501]
[1759708801910,0.002,4514.0,4513.9,15.29533501]
[1759708802614,0.002,4514.0,4513.9,31.10200001]
[1759708804517,0.002,4514.0,4513.9,27.15875301]
[1759708804685,0.002,4514.0,4513.9,25.35775001]
[1759708804886,0.4578,4514.0,4513.9,15.16061201]
[1759708805087,0.4578,4514.0,4513.9,1e-08]
[1759708805316,0.4578,4514.0,4513.9,3.53576901]
[1759708805534,0.4578,4514.0,4513.9,1e-08]
[1759708805829,2.67313008,4514.0,4513.9,1e-08]
[1759708806027,3.2725682,4514.0,4513.9,1e-08]
[1759708807197,1.05723812,4514.0,4513.9,1e-08]
[1759708807444,0.5682,4514.0,4513.9,1e-08]
[1759708808091,0.1124,4514.0,4513.9,1e-08]
[1759708808453,0.5682,4514.0,4513.9,1e-08]
[1759708808842,2.78353008,4514.0,4513.9,1e-08]
[1759708809261,0.5682,4514.0,4513.9,1e-08]
[1759708809791,0.84674507,4514.0,4513.9,1e-08]
[1759708810338,0.1124,4514.0,4513.9,1e-08]
[1759708810656,2.78353008,4514.0,4513.9,1e-08]
[1759708817886,0.1124,4514.0,4513.9,1e-08]
[1759708818574,2.78353008,4514.0,4513.9,1e-08]
[1759708820913,0.5682,4514.0,4513.9,1e-08]
[1759708821260,0.1124,4514.0,4513.9,1e-08]
[1759708821875,0.53510709,4514.0,4513.9,1e-08]
[1759708824677,2.75043717,4514.0,4513.9,1e-08]
[1759708824863,0.53510709,4514.0,4513.9,1e-08]
[1759708827921,0.1124,4514.0,4513.9,0.44270001]
[1759708828219,0.1124,4514.0,4513.9,1e-08]
[1759708831222,2.32773008,4514.0,4513.9,1e-08]
[1759708831621,2.78353008,4514.0,4513.9,1e-08]
[1759708832949,2.78893008,4514.0,4513.9,1e-08]
[1759708833110,3.29841443,4514.0,4513.9,1e-08]
[1759708833311,3.38707663,4514.0,4513.9,1e-08]
[1759708836954,1.17174655,4514.0,4513.9,1e-08]
[1759708837180,3.38707663,4514.0,4513.9,1e-08]
[1759708852253,2.92587663,4514.0,4513.9,1e-08]
[1759708852568,3.37397663,4514.0,4513.9,1e-08]
[1759708853498,2.92587663,4514.0,4513.9,1e-08]
[1759708853791,2.32773008,4514.0,4513.9,0.46240001]
[1759708854370,0.1124,4514.0,4513.9,0.46240001]
[1759708854691,2.32773008,4514.0,4513.9,0.46240001]
[1759708855293,0.1124,4514.0,4513.9,0.46240001]
[1759708855590,0.1124,4514.0,4513.9,1e-08]
[1759708856397,2.32773008,4514.0,4513.9,1e-08]
[1759708859006,3.23032796,4514.0,4513.9,1e-08]
[1759708860410,5.72732796,4514.0,4513.9,1e-08]
[1759708860582,5.93415573,4514.0,4513.9,1e-08]
[1759708861803,6.02282756,4514.0,4513.9,1e-08]
[1759708862376,5.81599979,4514.0,4513.9,1e-08]
[1759708864390,3.31899979,4514.0,4513.9,1e-08]
[1759708864590,5.81599979,4514.0,4513.9,1e-08]
[1759708865535,6.02268262,4514.0,4513.9,1e-08]
[1759708865690,6.49884873,4514.0,4513.9,1e-08]
[1759708866510,8.89884873,4514.0,4513.9,1e-08]
[1759708873863,8.89984873,4514.0,4513.9,1e-08]
[1759708876161,2.21557549,4513.5,4513.4,1e-08]
[1759708876331,4.93513304,4513.5,4513.4,1e-08]
[1759708876528,5.04553304,4513.5,4513.4,1e-08]
[1759708876729,5.56752178,4513.5,4513.4,1e-08]
[1759708877137,5.45712178,4513.5,4513.4,1e-08]
[1759708880071,5.02382178,4513.5,4513.4,1e-08]
[1759708880763,2.52582178,4513.5,4513.4,1e-08]
[1759708880965,5.02382178,4513.5,4513.4,1e-08]
[1759708884677,5.02482178,4513.5,4513.4,1e-08]
[1759708885175,5.45812178,4513.5,4513.4,1e-08]
[1759708885377,5.46012178,4513.5,4513.4,1e-08]
[1759708886381,5.66630707,4513.5,4513.4,1e-08]
[1759708886691,2.21582096,4513.0,4512.9,1e-08]
[1759708886890,2.21621382,4512.2,4512.1,0.455]
[1759708887195,4.82741382,4512.2,4512.1,0.455]
[1759708887356,4.82741382,4512.2,4512.1,0.01]
[1759708890970,4.82741382,4512.2,4512.1,0.455]
[1759708891392,4.82741382,4512.2,4512.1,0.01]
[1759708893188,4.82641382,4512.2,4512.1,0.01]
[1759708893394,5.57526937,4512.2,4512.1,0.01]
[1759708896109,6.01516937,4512.2,4512.1,0.01]
[1759708896306,5.57526937,4512.2,4512.1,0.01]
[1759708896508,6.01516937,4512.2,4512.1,0.01]
[1759708897664,5.57526937,4512.2,4512.1,0.01]
[1759708899103,3.07626937,4512.2,4512.1,0.01]
[1759708899405,5.57526937,4512.2,4512.1,0.01]
[1759708902375,6.01516937,4512.2,4512.1,0.01]
[1759708903214,6.47536937,4512.2,4512.1,0.011]
[1759708903411,6.03546937,4512.2,4512.1,0.011]
[1759708911817,3.53646937,4512.2,4512.1,0.011]
[1759708912025,6.03546937,4512.2,4512.1,0.011]
[1759708914265,6.47536937,4512.2,4512.1,0.011]
[1759708916687,0.86005555,4512.2,4512.1,0.011]
[1759708916890,2.32741382,4512.2,4512.1,0.4712]
[1759708917091,2.32741382,4512.2,4512.1,0.011]
[1759708918667,2.78761382,4512.2,4512.1,0.011]
[1759708920768,5.28761382,4512.2,4512.1,0.011]
[1759708923786,2.78761382,4512.2,4512.1,0.4515]
[1759708924016,0.1112,4512.2,4512.1,0.4515]
[1759708924361,0.4515,4512.7,4512.1,0.5627]
[1759708924555,0.002,4512.9,4512.3,2.4]
[1759708924781,0.002,4512.9,4512.6,0.7448]
[1759708924991,0.002,4512.9,4512.8,5.35991916]
[1759708925188,0.002,4513.4,4513.1,3.0336]
[1759708925356,0.002,4513.4,4513.3,2.21567367]
[1759708925556,0.002,4513.4,4513.3,29.0974644]
[1759708925812,0.002,4513.4,4513.3,29.51580767]
[1759708925959,0.002,4513.4,4513.3,31.42165367]
[1759708926655,1e-08,4513.5,4513.4,5.24922458]
[1759708926890,1e-08,4513.5,4513.4,35.68972458]
[1759708927069,1e-08,4513.5,4513.4,50.18972458]
[1759708928495,1e-08,4513.5,4513.4,52.68972458]
[1759708928687,1e-08,4513.5,4513.4,52.77834769]
[1759708930210,1e-08,4513.5,4513.4,11.25093211]
[1759708930507,1e-08,4513.5,4513.4,0.08862311]
[1759708930707,0.43200001,4513.5,4512.5,2.5]
[1759708930912,2.2156905,4513.3,4512.6,2.861259]
[1759708931203,0.43200001,4513.5,4512.1,0.011]
[1759708931408,0.432,4513.4,4512.2,4.272819]
[1759708931613,2.21588851,4512.9,4512.3,0.02216164]
[1759708931909,2.21586477,4513.0,4512.5,2.4]
[1759708932083,2.21567367,4513.3,4512.6,5.879543]
[1759708932413,2.2158602,4513.0,4512.6,5.291208]
[1759708932599,2.21592325,4512.8,4512.6,3.107546]
[1759708932907,2.21587085,4512.9,4512.6,5.410093]
[1759708933116,0.432,4513.3,4512.1,0.011]
[1759708933315,0.432,4512.8,4512.2,2.566344]
[1759708933497,0.432,4513.4,4512.3,0.02216164]
[1759708933699,2.21596634,4512.8,4512.3,0.02216164]
[1759708933900,2.21562458,4513.4,4512.4,2.879068]
[1759708934103,2.21562458,4513.4,4512.6,2.4]
[1759708934301,2.21562725,4513.4,4512.7,16.64035968]
[1759708934610,1e-08,4513.5,4512.8,2.502]
[1759708934802,2.21557619,4513.5,4512.9,0.0221587]
[1759708935202,1e-08,4513.5,4513.0,21.707161]
[1759708935406,1e-08,4513.5,4513.1,0.46265771]
[1759708935915,1e-08,4513.5,4513.2,0.46265722]
[1759708936284,1e-08,4513.5,4513.3,20.417836]
[1759708936485,1e-08,4513.5,4513.4,31.36035924]
[1759708936780,1e-08,4513.5,4513.4,36.39432758]
[1759708937704,1e-08,4513.5,4513.4,38.19172458]
[1759708939530,1e-08,4513.5,4513.4,14.829839]
[1759708939683,1e-08,4513.5,4513.4,20.839829]
[1759708939882,1e-08,4513.5,4513.4,20.595332]
[1759708940337,1e-08,4513.5,4513.4,19.691882]
[1759708940774,1e-08,4513.5,4513.4,21.324977]
[1759708940981,1e-08,4513.5,4513.4,17.384671]
[1759708941178,1e-08,4513.5,4513.4,6.704077]
[1759708941179,2.2155755,4513.5,4513.4,6.704077]
[1759708941440,2.21572276,4513.2,4513.1,0.001]
[1759708941591,2.21572276,4513.2,4513.1,0.011]
[1759708941791,2.64772276,4513.2,4513.1,0.001]
[1759708945221,2.73641426,4513.2,4513.1,0.001]
[1759708945427,3.4927604,4513.2,4513.1,0.001]
[1759708948226,3.6031604,4513.2,4513.1,0.001]
[1759708948429,3.5144689,4513.2,4513.1,0.001]
[1759708953539,3.0824689,4513.2,4513.1,0.001]
[1759708954059,3.5361689,4513.2,4513.1,0.001]
[1759708955862,3.0824689,4513.2,4513.1,0.001]
[1759708956155,2.32612276,4513.2,4513.1,0.001]
[1759708958261,2.21572276,4513.2,4513.1,0.435]
[1759708958629,2.21572276,4513.2,4513.1,0.001]
[1759708964092,2.66312276,4513.2,4513.1,0.001]
[1759708966392,3.16203789,4513.2,4513.1,0.001]
[1759708966982,5.66203789,4513.2,4513.1,0.001]
[1759708970349,6.34533351,4513.2,4513.1,0.001]
[1759708971518,8.74533351,4513.2,4513.1,0.001]
[1759708972597,8.83402481,4513.2,4513.1,0.001]
[1759708975800,8.38662481,4513.2,4513.1,0.001]
[1759708976214,5.89793351,4513.2,4513.1,0.001]
[1759708976413,5.42133224,4513.2,4513.1,0.001]
[1759708977507,5.86873224,4513.2,4513.1,0.001]
[1759708978212,5.42133224,4513.2,4513.1,0.001]
[1759708981544,8.74495078,4513.2,4513.1,0.001]
[1759708981914,6.24495078,4513.2,4513.1,0.001]
[1759708982110,8.74495078,4513.2,4513.1,0.001]
[1759708982310,6.24495078,4513.2,4513.1,0.001]
[1759708983109,8.74495078,4513.2,4513.1,0.001]
[1759708985202,6.24495078,4513.2,4513.1,0.001]
[1759708985413,8.74487538,4513.2,4513.1,0.001]
[1759708985625,6.24487538,4513.2,4513.1,0.001]
[1759708985820,8.74487538,4513.2,4513.1,0.001]
[1759708986046,6.24487538,4513.2,4513.1,0.001]
[1759708986256,8.74487538,4513.2,4513.1,0.001]
[1759708986418,5.79747538,4513.2,4513.1,0.001]
[1759708986618,8.76057538,4513.2,4513.1,0.001]
[1759708991059,8.55395643,4513.2,4513.1,0.001]
[1759708991359,8.76049914,4513.2,4513.1,0.001]
[1759708991560,8.29739914,4513.2,4513.1,0.001]
[1759708991927,8.76049914,4513.2,4513.1,0.001]
[1759708992133,8.29739914,4513.2,4513.1,0.001]
[1759708993448,3.39739914,4513.2,4513.1,0.001]
[1759708993676,5.03166547,4513.2,4513.1,0.001]
[1759708993840,5.97083829,4513.2,4513.1,0.001]
[1759708994147,5.50773829,4513.2,4513.1,0.001]
[1759708994482,2.53266547,4513.2,4513.1,0.001]
[1759708994970,5.03166547,4513.2,4513.1,0.001]
[1759708995135,6.28016088,4513.2,4513.1,0.001]
[1759708995336,6.74326088,4513.2,4513.1,0.001]
[1759708995773,6.28016088,4513.2,4513.1,0.001]
[1759708996450,6.74326088,4513.2,4513.1,0.001]
[1759708996639,9.14326088,4513.2,4513.1,0.001]
[1759708997642,2.21645942,4511.7,4511.6,0.001]
[1759708999541,2.21645942,4511.7,4511.6,0.2142]
[1759709001387,2.21645942,4511.7,4511.6,0.001]
[1759709003426,2.21645942,4511.7,4511.6,0.2142]
[1759709004427,2.21645942,4511.7,4511.6,0.001]
[1759709005527,5.17955942,4511.7,4511.6,0.001]
[1759709005686,6.16935405,4511.7,4511.6,0.001]
[1759709007521,6.28055405,4511.7,4511.6,0.001]
[1759709011226,6.48715586,4511.7,4511.6,0.001]
[1759709011429,6.28055405,4511.7,4511.6,0.001]
[1759709013969,3.31745405,4511.7,4511.6,0.001]
[1759709014114,2.32765942,4511.7,4511.6,0.001]
[1759709014586,5.29475942,4511.7,4511.6,0.001]
[1759709016947,7.7900785,4511.7,4511.6,0.001]
[1759709017364,7.7900785,4511.7,4511.1,1e-08]
[1759709017365,4.61650855,4511.6,4511.1,1e-08]
[1759709017659,4.61663119,4511.4,4511.1,1e-08]
[1759709017855,3.18327141,4511.3,4511.1,1e-08]
[1759709018071,5.29897649,4511.2,4511.1,1e-08]
[1759709018434,5.76507649,4511.2,4511.1,1e-08]
[1759709022668,8.26807649,4511.2,4511.1,1e-08]
[1759709022869,9.42320606,4511.2,4511.1,1e-08]
[1759709025472,1.83740098,4511.2,4511.1,1e-08]
[1759709025674,0.20651908,4511.2,4511.1,1e-08]
[1759709025835,2.504,4511.2,4511.1,1e-08]
[1759709026036,4.904,4511.2,4511.1,1e-08]
[1759709026438,7.32674591,4511.2,4511.1,1e-08]
[1759709026743,7.79284591,4511.2,4511.1,1e-08]
[1759709026979,8.90499352,4511.2,4511.1,1e-08]
[1759709027271,9.37971385,4511.2,4511.1,1e-08]
[1759709027683,7.16300877,4511.2,4511.1,1e-08]
[1759709028888,6.69690877,4511.2,4511.1,1e-08]
[1759709029091,8.91361385,4511.2,4511.1,1e-08]
[1759709029294,9.37971385,4511.2,4511.1,1e-08]
[1759709030946,7.16300877,4511.2,4511.1,1e-08]
[1759709031389,6.69690877,4511.2,4511.1,1e-08]
[1759709031693,4.65900877,4511.2,4511.1,1e-08]
[1759709031880,8.37876624,4511.2,4511.1,1e-08]
[1759709034150,6.16206116,4511.2,4511.1,1e-08]
[1759709034974,10.71076624,4511.2,4511.1,1e-08]
[1759709035292,8.37876624,4511.2,4511.1,1e-08]
[1759709035655,6.16206116,4511.2,4511.1,1e-08]
[1759709035849,6.83779459,4511.2,4511.1,1e-08]
[1759709037964,4.33379459,4511.2,4511.1,1e-08]
[1759709038175,3.86769459,4511.2,4511.1,1e-08]
[1759709038576,5.69796116,4511.2,4511.1,1e-08]
[1759709039705,3.19396116,4511.2,4511.1,0.21320001]
[1759709039876,5.69896116,4511.2,4511.1,0.21320001]
[1759709040064,5.69896116,4511.2,4511.1,1e-08]
[1759709040463,3.19396116,4511.2,4511.1,1e-08]
[1759709040675,0.79396116,4511.2,4511.1,0.21320001]
[1759709040893,2.6192,4511.2,4511.1,0.21320001]
[1759709041092,0.1132,4511.2,4511.1,0.21320001]
[1759709042778,2.6222,4511.2,4511.1,1e-08]
[1759709044328,2.6222,4511.2,4511.1,0.21320001]
[1759709045104,0.1132,4511.2,4511.1,0.21320001]
[1759709050627,0.002,4511.2,4511.1,0.21320001]
[1759709050826,0.002,4511.2,4511.1,0.32440001]
[1759709052139,0.002,4511.2,4511.1,0.95800001]
[1759709054008,0.002,4511.2,4511.1,0.11120001]
[1759709054207,0.002,4511.2,4511.1,1e-08]
[1759709055430,0.002,4511.2,4511.1,0.21320001]
[1759709057635,0.002,4511.2,4511.1,0.95800001]
[1759709058134,0.002,4511.2,4511.1,0.98016755]
[1759709058335,0.002,4511.2,4511.1,27.91699277]
[1759709058550,0.002,4511.2,4511.1,27.09031123]
[1759709059464,0.002,4511.2,4511.1,35.57475423]
[1759709059826,0.002,4511.2,4511.1,35.29669523]
[1759709060327,0.002,4511.2,4511.1,35.57475423]
[1759709060524,0.002,4511.2,4511.1,33.35800001]
[1759709060732,0.002,4511.2,4511.1,14.57938401]
[1759709060961,0.002,4511.2,4511.1,5.88363301]
[1759709061146,0.002,4511.2,4511.1,8.39363301]
[1759709061354,0.002,4511.2,4511.1,12.09770401]
[1759709061627,0.002,4511.2,4511.1,11.75727401]
[1759709062457,0.002,4511.2,4511.1,21.72292301]
[1759709062639,0.002,4511.2,4511.1,9.92381101]
[1759709062839,0.002,4511.2,4511.1,18.75370523]
[1759709063034,0.002,4511.2,4511.1,18.95370523]
[1759709063234,0.002,4511.2,4511.1,21.41099723]
[1759709063436,0.002,4511.2,4511.1,29.12988123]
[1759709063630,0.002,4511.2,4511.1,14.68670801]
[1759709063849,0.002,4511.2,4511.1,11.73130501]
[1759709064168,0.002,4511.2,4511.1,0.74480001]
[1759709064468,0.002,4511.2,4511.1,2.19880001]
[1759709065883,0.4298,4511.2,4511.1,1.56520001]
[1759709066089,0.002,4511.2,4511.1,1.56520001]
[1759709067052,0.002,4511.2,4511.1,7.46595001]
[1759709067257,0.002,4511.2,4511.1,3.74114201]
[1759709067458,0.002,4511.2,4511.1,0.11120001]
[1759709070401,0.4298,4511.2,4511.1,0.11120001]
[1759709070559,0.541,4511.2,4511.1,1e-08]
[1759709074863,0.1132,4511.2,4511.1,1e-08]
[1759709075072,0.5496,4511.2,4511.1,1e-08]
[1759709075593,0.1132,4511.2,4511.1,1e-08]
[1759709076164,0.002,4511.2,4511.1,1e-08]
[1759709086324,0.4384,4511.2,4511.1,1e-08]
[1759709086485,0.002,4511.2,4511.1,1e-08]
[1759709086691,0.4384,4511.2,4511.1,1e-08]
[1759709086890,0.5496,4511.2,4511.1,1e-08]
[1759709091407,0.002,4511.2,4511.1,1e-08]
[1759709093837,0.002,4511.2,4511.1,0.02216755]
[1759709094742,0.002,4511.2,4511.1,1e-08]
[1759709096238,0.002,4511.2,4511.1,0.84680001]
[1759709096443,0.002,4511.2,4511.1,3.06355423]
[1759709096737,0.002,4511.2,4511.1,5.46355423]
[1759709097600,0.002,4511.2,4511.1,35.46355423]
[1759709098437,0.002,4511.2,4511.1,5.46355423]
[1759709098658,0.002,4511.2,4511.1,35.46355423]
[1759709102391,0.002,4511.2,4511.1,35.55224612]
[1759709102788,0.002,4511.2,4511.1,33.3354919]
[1759709102994,0.002,4511.2,4511.1,33.1222919]
[1759709103298,0.002,4511.2,4511.1,35.33904612]
[1759709104375,0.4386,4511.2,4511.1,1e-08]
[1759709105547,0.5498,4511.2,4511.1,1e-08]
[1759709113630,0.4386,4511.2,4511.1,1e-08]
[1759709118582,0.64474729,4511.2,4511.1,1e-08]
[1759709119215,0.4386,4511.2,4511.1,1e-08]
[1759709121726,0.52733714,4511.2,4511.1,1e-08]
[1759709122128,0.7333835,4511.2,4511.1,1e-08]
[1759709122793,5.6443835,4511.2,4511.1,1e-08]
[1759709123030,6.20882185,4511.2,4511.1,1e-08]
[1759709123756,6.32002185,4511.2,4511.1,1e-08]
[1759709129509,6.31979463,4511.2,4511.1,1e-08]
[1759709129944,13.17655363,4511.2,4511.1,1e-08]
[1759709130145,15.24352471,4511.2,4511.1,1e-08]
[1759709130317,16.57352471,4511.2,4511.1,1e-08]
[1759709131218,17.20712471,4511.2,4511.1,1e-08]
[1759709132450,17.20712471,4511.2,4510.6,0.001]
[1759709132451,6.6956,4510.7,4510.6,0.001]
[1759709132650,14.35242714,4510.7,4510.6,0.001]
[1759709132841,14.78962714,4510.7,4510.6,0.001]
[1759709133040,14.8784021,4510.7,4510.6,0.001]
[1759709133556,16.8891071,4510.7,4510.6,0.001]
[1759709133715,12.5409351,4510.7,4510.6,0.001]
[1759709134051,7.5745541,4510.7,4510.6,0.001]
[1759709134355,6.3123541,4510.7,4510.6,0.001]
[1759709136949,11.7528911,4510.7,4510.6,0.001]
[1759709137150,8.8420061,4510.7,4510.6,0.001]
[1759709137956,6.3123541,4510.7,4510.6,0.001]
[1759709138666,9.4900061,4510.7,4510.6,0.001]
[1759709138869,9.5386711,4510.7,4510.6,0.001]
[1759709139054,11.8706711,4510.7,4510.6,0.001]
[1759709139634,13.2006711,4510.7,4510.6,0.001]
[1759709139835,9.9743541,4510.7,4510.6,0.001]
[1759709140978,37.3036931,4510.7,4510.6,0.001]
[1759709141360,38.15120528,4510.7,4510.6,0.001]
[1759709141531,31.02957296,4510.7,4510.6,0.001]
[1759709141736,26.62060696,4510.7,4510.6,0.001]
[1759709141936,28.19587296,4510.7,4510.6,0.001]
[1759709142185,24.34652296,4510.7,4510.6,0.001]
[1759709142878,15.44795896,4510.7,4510.6,0.001]
[1759709143037,20.50641896,4510.7,4510.6,0.001]
[1759709143356,18.82380096,4510.7,4510.6,0.001]
[1759709143970,22.82601096,4510.7,4510.6,0.001]
[1759709144139,20.06180096,4510.7,4510.6,0.001]
[1759709144339,18.92500096,4510.7,4510.6,0.001]
[1759709144971,20.51267696,4510.7,4510.6,0.001]
[1759709145285,19.87423506,4510.7,4510.6,0.001]
[1759709146183,21.25530206,4510.7,4510.6,0.001]
[1759709146498,20.46585896,4510.7,4510.6,0.001]
[1759709146902,20.46485896,4510.7,4510.6,0.001]
[1759709147101,36.01205396,4510.7,4510.6,0.001]
[1759709147385,38.01205396,4510.7,4510.6,0.001]
[1759709148046,38.37235596,4510.7,4510.6,0.001]
[1759709148246,2.332,4510.5,4510.1,0.011]
[1759709148449,0.1112,4510.2,4510.1,0.011]
[1759709148648,3.300685,4510.2,4510.1,0.011]
[1759709148873,6.771485,4510.2,4510.1,0.011]
[1759709149549,9.103485,4510.2,4510.1,0.011]
[1759709149747,9.89472713,4510.2,4510.1,0.011]
[1759709149973,11.35246549,4510.2,4510.1,0.011]
[1759709150175,10.56122336,4510.2,4510.1,0.011]
[1759709150348,11.89122336,4510.2,4510.1,0.011]
[1759709150544,10.56122336,4510.2,4510.1,0.011]
[1759709151050,21.88511636,4510.2,4510.1,0.011]
[1759709151348,16.51937936,4510.2,4510.1,0.011]
[1759709151553,15.14617936,4510.2,4510.1,0.011]
[1759709151776,14.36370636,4510.2,4510.1,0.011]
[1759709153101,5.28202336,4510.2,4510.1,0.011]
[1759709153398,7.12553759,4510.2,4510.1,0.011]
[1759709153775,4.61653759,4510.2,4510.1,0.011]
[1759709154099,6.333285,4510.2,4510.1,0.011]
[1759709154304,6.333285,4510.2,4510.1,0.2242]
[1759709154305,3.713085,4510.2,4510.1,0.2242]
[1759709154516,3.934285,4510.2,4510.1,0.2242]
[1759709155599,4.38713784,4510.2,4510.1,0.011]
[1759709155799,6.78713784,4510.2,4510.1,0.011]
[1759709156568,6.78713784,4510.2,4510.1,0.2242]
[1759709157087,4.27713784,4510.2,4510.1,0.2242]
[1759709157311,4.27713784,4510.2,4510.1,0.011]
[1759709157312,6.78713784,4510.2,4510.1,0.011]
[1759709159433,4.27713784,4510.2,4510.1,0.011]
[1759709159734,6.78713784,4510.2,4510.1,0.011]
[1759709160442,2.01852835,4510.2,4510.1,0.2242]
[1759709160620,2.82701914,4510.2,4510.1,0.2242]
[1759709160930,3.300685,4510.2,4510.1,0.2242]
[1759709162225,0.790685,4510.2,4510.1,0.2242]
[1759709162424,2.82701914,4510.2,4510.1,0.2242]
[1759709164634,2.82764976,4510.2,4510.1,0.2242]
[1759709164871,3.13283474,4510.2,4510.1,0.2242]
[1759709168005,3.13283474,4510.2,4510.1,0.011]
[1759709168203,5.53283474,4510.2,4510.1,0.011]
[1759709168408,5.96343474,4510.2,4510.1,0.011]
[1759709168603,5.53283474,4510.2,4510.1,0.011]
[1759709169413,5.74603474,4510.2,4510.1,0.011]
[1759709171017,3.23603474,4510.2,4510.1,0.011]
[1759709171216,5.74603474,4510.2,4510.1,0.011]
[1759709174250,3.23603474,4510.2,4510.1,0.011]
[1759709174451,5.74503474,4510.2,4510.1,0.011]
[1759709175951,0.53084976,4510.2,4510.1,0.011]
[1759709176155,2.71544976,4510.2,4510.1,0.2242]
[1759709176460,2.82664976,4510.2,4510.1,0.011]
[1759709176958,2.82664976,4510.2,4510.1,0.2242]
[1759709177172,0.1112,4510.2,4510.1,0.2242]
[1759709177464,2.6192,4510.2,4510.1,0.2242]
[1759709179536,0.1112,4510.2,4510.1,0.2242]
[1759709182034,0.1112,4510.5,4510.1,0.2242]
[1759709182627,0.1112,4510.5,4510.2,0.02217196]
[1759709182951,0.1112,4510.5,4510.3,0.2132]
[1759709183980,0.002,4510.6,4510.4,0.8468]
[1759709184353,0.002,4510.6,4510.4,0.6336]
[1759709184555,0.002,4510.6,4510.5,0.2132]
[1759709186359,0.002,4510.6,4510.5,0.86897049]
[1759709186559,0.002,4510.6,4510.5,0.8468]
[1759709189860,0.002,4510.6,4510.5,0.6336]
[1759709190058,0.002,4510.6,4510.5,0.8468]
[1759709191851,0.002,4510.6,4510.5,0.86897049]
[1759709192876,0.002,4510.6,4510.5,0.8468]
[1759709194153,0.002,4510.6,4510.5,0.6336]
[1759709194773,0.002,4510.6,4510.5,0.8468]
[1759709196312,0.002,4510.6,4510.5,0.6336]
[1759709196667,0.002,4510.6,4510.5,3.0638491]
[1759709197273,0.002,4510.6,4510.5,3.08601959]
[1759709197592,0.002,4510.6,4510.5,0.8468]
[1759709198167,0.002,4510.6,4510.5,3.0638491]
[1759709200000,0.002,4510.6,4510.5,0.6336]
[1759709200185,0.4758,4510.6,4510.5,0.6336]
[1759709202771,0.002,4510.6,4510.5,0.6336]
[1759709208829,0.002,4510.6,4510.5,0.8468]
[1759709209196,0.002,4510.6,4510.5,0.6336]
[1759709209501,0.4758,4510.6,4510.1,0.011]
[1759709209715,0.20647626,4510.5,4510.1,0.011]
[1759709210119,0.4738,4510.4,4510.1,0.011]
[1759709210633,0.2064535,4510.3,4510.1,0.011]
[1759709211297,0.4738,4510.2,4510.1,0.011]
[1759709212905,0.4738,4510.2,4508.7,3.1305905]
[1759709213112,0.4738,4510.1,4508.7,3.1305905]
[1759709213345,0.4738,4510.0,4508.7,3.1305905]
[1759709213497,0.4738,4509.9,4508.7,3.1305905]
[1759709213700,0.4738,4509.8,4508.1,0.01]
[1759709214116,0.9476,4509.8,4508.1,0.01]
[1759709214629,0.9476,4509.8,4509.6,0.001]
[1759709219719,0.1112,4509.7,4509.6,0.001]
[1759709220336,0.6962,4509.7,4509.6,0.001]
[1759709223645,0.2224,4509.7,4509.6,0.001]
[1759709224036,0.1112,4509.7,4509.6,0.001]
[1759709227511,0.5778,4509.7,4509.6,0.001]
[1759709229468,0.78347147,4509.7,4509.6,0.001]
[1759709229762,0.90846293,4509.7,4509.6,0.001]
[1759709230642,3.30846293,4509.7,4509.6,0.001]
[1759709230964,5.82346293,4509.7,4509.6,0.001]
[1759709231164,3.30846293,4509.7,4509.6,0.001]
[1759709231349,5.82346293,4509.7,4509.6,0.001]
[1759709231858,3.30846293,4509.7,4509.6,0.001]
[1759709232060,2.84186293,4509.7,4509.6,0.001]
[1759709232362,2.84197439,4509.7,4509.6,0.001]
[1759709233253,2.63620715,4509.7,4509.6,0.001]
[1759709237134,5.15120715,4509.7,4509.6,0.001]
[1759709237554,5.35730713,4509.7,4509.6,0.001]
[1759709239172,5.82404049,4509.7,4509.6,0.001]
[1759709240448,6.29971298,4509.7,4509.6,0.001]
[1759709240648,5.82404049,4509.7,4509.6,0.001]
[1759709241685,5.35744049,4509.7,4509.6,0.001]
[1759709242346,5.57064049,4509.7,4509.6,0.001]
[1759709243389,6.03624049,4509.7,4509.6,0.001]
[1759709244117,5.56964049,4509.7,4509.6,0.001]
[1759709244302,3.05564049,4509.7,4509.6,0.001]
[1759709244471,5.56964049,4509.7,4509.6,0.001]
[1759709246000,5.35644049,4509.7,4509.6,0.001]
[1759709247916,2.95644049,4509.7,4509.6,0.001]
[1759709248302,0.44244049,4509.7,4509.6,0.001]
[1759709248482,2.95544049,4509.7,4509.6,0.001]
[1759709248900,3.42204049,4509.7,4509.6,0.001]
[1759709249925,5.82204049,4509.7,4509.6,0.001]
[1759709250074,6.29834065,4509.7,4509.6,0.001]
[1759709250274,6.40954065,4509.7,4509.6,0.001]
[1759709250489,6.41154065,4509.7,4509.6,0.001]
[1759709254677,7.00521206,4509.7,4509.6,0.001]
[1759709254873,6.41154065,4509.7,4509.6,0.001]
[1759709258475,7.20476185,4509.7,4509.6,0.001]
[1759709260306,6.41154065,4509.7,4509.6,0.001]
[1759709262665,20.93455285,4509.7,4509.6,0.001]
[1759709263612,24.99836085,4509.7,4509.6,0.001]
[1759709263811,21.34024785,4509.7,4509.6,0.001]
[1759709264451,21.06086385,4509.7,4509.6,0.001]
[1759709264657,21.11799285,4509.7,4509.6,0.001]
[1759709265560,20.32477165,4509.7,4509.6,0.001]
[1759709265850,20.85632565,4509.7,4509.6,0.001]
[1759709266027,21.64954685,4509.7,4509.6,0.001]
[1759709266228,20.57396765,4509.7,4509.6,0.001]
[1759709266530,21.36718885,4509.7,4509.6,0.001]